{"text_format":"1","workbook":"xlsx","n_sheets":2,"sheets":["sheet 1","sheet 2"],"not_rendered":{"charts":2,"images":1,"macros":1,"external_links":0,"defined_names":0,"comments":0,"pivot_tables":0},"unopened":[],"bounds":{"document_bytes":16777216,"sheet_cells":100000,"rows_first":2000,"rows_last":500,"rows_between":2000,"halvings":0,"cell_chars":16384,"cell_head_chars":4096},"cells_cut":0,"cells_raw":0,"read":"whole","date_system":"1900"}

{"sheet":"sheet 1","index":0,"n_rows":0,"n_cols":0,"rows_kept":0,"cut":false,"hidden":false,"merged":[]}

{"sheet":"sheet 2","index":1,"n_rows":28,"n_cols":16,"rows_kept":28,"cut":false,"hidden":false,"merged":[]}
[]
[]
[]
[null,null,"#",1,2,3,4,5,6,7,8,9,10]
[null,null,1,"x",null,null,null,null,null,null,null,null,null,null,{"$f":"COUNTIF(D5:M5,\"x\")","v":1},{"$f":"COUNTIF(D5:M5,\"y\")","v":0}]
[null,null,2,null,null,null,null,null,null,null,null,null,null,null,{"$f":"COUNTIF(D6:M6,\"x\")","v":0},{"$f":"COUNTIF(D6:M6,\"y\")","v":0}]
[null,null,3,null,null,null,"x",null,null,null,null,null,null,null,1,0]
[null,null,4,null,null,null,null,null,null,null,null,null,null,null,0,0]
[null,null,5,null,null,null,null,null,null,"x",null,null,null,null,1,0]
[null,null,6,null,null,null,null,null,null,null,null,null,null,null,0,0]
[null,null,7,null,"y",null,null,null,null,null,null,null,null,null,0,1]
[null,null,8,null,null,null,null,null,null,null,null,null,null,null,0,0]
[null,null,9,null,null,null,null,null,"x",null,"x",null,null,null,2,0]
[null,null,10,null,null,null,null,null,null,null,null,null,null,null,0,0]
[null,null,11,null,null,null,null,null,null,null,null,null,null,null,0,0]
[null,null,12,null,"y",null,null,null,null,null,null,null,null,null,0,1]
[null,null,13,null,null,null,null,null,null,null,null,null,null,null,0,0]
[null,null,14,null,null,null,null,null,null,null,null,null,"y",null,0,1]
[null,null,15,null,null,null,null,null,null,null,null,null,null,null,0,0]
[null,null,16,null,null,"x",null,null,null,null,null,null,null,null,1,0]
[null,null,17,null,null,null,null,null,null,null,"x",null,null,null,1,0]
[null,null,18,null,null,null,null,"x",null,null,null,null,null,null,1,0]
[null,null,19,null,null,"y",null,null,null,null,null,null,"y",null,{"$f":"COUNTIF(D23:M23,\"x\")","v":0},2]
[null,null,20,null,"y",null,null,null,null,null,null,null,null,null,0,{"$f":"COUNTIF(D24:M24,\"y\")","v":1}]
[null,null,21,null,null,null,null,null,null,null,null,null,null,null,{"$f":"COUNTIF(D25:M25,\"x\")","v":0},0]
[]
[null,null,"x",{"$f":"COUNTIF(D5:D25,\"x\")","v":1},{"$f":"COUNTIF(E5:E25,\"x\")","v":0},1,1,1,1,{"$f":"COUNTIF(J5:J25,\"x\")","v":1},2,0,0,null,{"$f":"SUM(D27:M27)/100","v":0.08},{"$f":"1-O27","v":0.92}]
[null,null,"y",{"$f":"COUNTIF(D5:D25,\"y\")","v":0},{"$f":"COUNTIF(E5:E25,\"y\")","v":3},1,0,0,0,0,0,0,2,null,{"$f":"SUM(D28:M28)/100","v":0.06},{"$f":"1-O28","v":0.94}]